[Event "XVI Memorial Lezcano Montalvo 2024"]
[Site "Gran Canaria"]
[Date "2024.03.26"]
[Round "4.26"]
[White "Blanco Garcia Bajo, David"]
[Black "Mukhi Talreja, Ishita Tina"]
[Result "1-0"]
[ECO "B01"]
[WhiteElo "2004"]
[BlackElo "1755"]
[Annotator "NA RC"]
[PlyCount "75"]
[EventDate "2024.03.23"]
[EventType "swiss"]
[EventCountry "ESP"]
[SourceTitle "playchess.com"]
[Source "ChessBase"]
[SourceQuality "1"]
[TimeControl "5400+30"]

1. e4 {[%emt 0:00:05]} d5 {[%emt 0:00:19]} 2. exd5 {[%emt 0:00:10]} Qxd5 {[%emt 0:00:07]} 3. Nc3 {[%emt 0:00:11]} Qd6 {[%emt 0:00:40]} 4. Nb5 {[%emt 0:00:44]} Qb6 {[%emt 0:00:58]} 5. Nf3 {[%emt 0:01:01]} Nf6 {[%emt 0:02:22]} 6. Na3 {[%emt 0:02:49]} c6 {[%emt 0:06:35]} 7. d4 {[%emt 0:00:26]} Bf5 {[%emt 0:01:27]} 8. Nc4 {[%emt 0:06:29]} Qc7 {[%emt 0:02:17]} 9. Nfe5 {[%emt 0:01:49]} Nbd7 {[%emt 0:04:21]} 10. Bf4 {[%emt 0:02:12]} Nxe5 {[%emt 0:01:04]} 11. Nxe5 {[%emt 0:00:03]} Qa5+ {[%emt 0:01:28]} 12. c3 {[%emt 0:00:48]} Nd7 {[%emt 0:09:25]} 13. Qb3 {[%emt 0:01:31]} Nxe5 {[%emt 0:09:38]} 14. Qb4 {[%emt 1:19:12]} Qd8 15. Qxb7 {[%emt 0:00:00]} Qc8 16. Bxe5 {[%emt 0:00:00]} f6 {[%emt 0:10:02]} 17. Ba6 {[%emt 0:00:00]} Bd7 {[%emt 0:03:21]} 18. Bc7 {[%emt 0:00:00]} c5 {[%emt 0:05:15]} 19. d5 {[%emt 0:00:00]} Kf7 {[%emt 0:01:39]} 20. d6 {[%emt 0:00:00]} e6 {[%emt 0:01:56]} 21. Qd5 {[%emt 0:00:00]} exd5 22. Bxc8 {[%emt 0:00:00]} Bxd6 23. Bxd7 {[%emt 0:00:00]} Rad8 24. Bxd6 {[%emt 0:00:00]} Rxd7 25. Bxc5 {[%emt 0:00:00]} a5 {[%emt 0:04:15]} 26. O-O-O {[%emt 0:00:00]} Rf8 {[%emt 0:36:21]} 27. Rd3 Rc8 {[%emt 0:00:00]} 28. Be3 {[%emt 0:00:00]} a4 {[%emt 0:00:00]} 29. Rhd1 {[%emt 0:00:00]} Ke6 {[%emt 0:00:00]} 30. Rd4 {[%emt 0:00:00]} a3 {[%emt 0:00:00]} 31. c4 {[%emt 0:00:00]} axb2+ {[%emt 0:00:00]} 32. Kxb2 {[%emt 0:00:00]} Rb7+ {[%emt 0:00:00]} 33. Kc3 {[%emt 0:00:00]} Ra8 {[%emt 0:00:00]} 34. cxd5+ {[%emt 0:00:00]} Kf7 {[%emt 0:00:00]} 35. a4 {[%emt 0:00:00]} Rab8 {[%emt 0:00:00]} 36. d6 {[%emt 0:00:00]} Rb3+ {[%emt 0:00:00]} 37. Kc4 {[%emt 0:00:00]} Rb2 {[%emt 0:00:00]} 38. d7 {[%emt 0:00:00]} 1-0

[Event "XVI Memorial Lezcano Montalvo 2024"]
[Site "Gran Canaria"]
[Date "2024.03.26"]
[Round "4.27"]
[White "Morales Camacho, Julian"]
[Black "Sanchez Montesdeoca, Isaac"]
[Result "1-0"]
[ECO "A28"]
[WhiteElo "2186"]
[BlackElo "1832"]
[Annotator "RC"]
[PlyCount "100"]
[EventDate "2024.03.23"]
[EventType "swiss"]
[EventCountry "ESP"]
[SourceTitle "playchess.com"]
[Source "ChessBase"]
[SourceQuality "1"]
[TimeControl "5400+30"]

1. c4 {[%emt 0:00:24]} e5 {[%emt 0:00:10]} 2. e3 {[%emt 0:00:15]} Nf6 {[%emt 1:31:20]} 3. Nc3 {[%emt 0:01:39]} Nc6 {[%emt 0:00:00]} 4. a3 {[%emt 0:01:00]} a5 {[%emt 0:00:00]} 5. Qc2 {[%emt 0:01:06]} Be7 {[%emt 0:00:00]} 6. Nf3 {[%emt 0:01:14]} O-O {[%emt 0:02:00]} 7. Nd5 {[%emt 0:02:11]} Re8 {[%emt 0:00:00]} 8. Nxe7+ {[%emt 0:04:20]} Qxe7 {[%emt 0:00:00]} 9. d3 {[%emt 0:00:15]} e4 {[%emt 0:00:00]} 10. dxe4 {[%emt 0:00:46]} Nxe4 {[%emt 0:00:00]} 11. Bd3 {[%emt 0:01:34]} f5 {[%emt 0:00:00]} 12. O-O {[%emt 0:01:31]} a4 {[%emt 0:00:00]} 13. Nd4 {[%emt 0:01:43]} g6 {[%emt 0:00:00]} 14. Nb5 {[%emt 0:06:21]} d6 {[%emt 0:00:00]} 15. Nc3 {[%emt 0:00:08]} Nxc3 {[%emt 0:00:00]} 16. Qxc3 {[%emt 0:00:14]} Qe5 {[%emt 0:00:00]} 17. Qc2 {[%emt 0:00:37]} h6 {[%emt 0:00:00]} 18. Bd2 {[%emt 0:01:32]} Qe7 {[%emt 0:00:00]} 19. f4 {[%emt 0:00:41]} Be6 {[%emt 0:00:00]} 20. Rf3 {[%emt 0:03:56]} Qf7 {[%emt 0:00:00]} 21. Rh3 {[%emt 0:01:15]} h5 {[%emt 0:00:00]} 22. Rg3 {[%emt 0:00:34]} Ne7 {[%emt 0:00:00]} 23. Rg5 {[%emt 0:04:13]} c5 {[%emt 0:00:00]} 24. h3 {[%emt 0:01:11]} d5 {[%emt 0:00:00]} 25. cxd5 {[%emt 0:01:10]} Bxd5 {[%emt 0:00:00]} 26. Qxc5 {[%emt 0:01:56]} Rac8 {[%emt 0:00:00]} 27. Qd4 {[%emt 0:00:40]} Red8 {[%emt 0:00:00]} 28. Bc3 {[%emt 0:00:27]} Kh7 {[%emt 0:00:00]} 29. Qf6 {[%emt 0:12:31]} Qxf6 {[%emt 0:00:00]} 30. Bxf6 {[%emt 0:00:03]} Be6 {[%emt 0:00:00]} 31. Bb5 {[%emt 0:02:05]} Rd5 {[%emt 0:00:00]} 32. Bxa4 {[%emt 0:01:08]} Ra5 {[%emt 0:00:00]} 33. Bd1 {[%emt 0:02:00]} Nd5 {[%emt 0:00:00]} 34. Bd4 {[%emt 0:00:16]} Rc4 {[%emt 0:00:00]} 35. g3 {[%emt 0:09:51]} Nc7 {[%emt 0:00:00]} 36. g4 {[%emt 0:03:53]} h4 {[%emt 0:00:00]} 37. Bc3 {[%emt 0:03:20]} Ra8 {[%emt 0:00:00]} 38. gxf5 {[%emt 0:02:31]} Bxf5 {[%emt 0:00:00]} 39. Bb3 {[%emt 0:00:53]} Re4 {[%emt 0:00:00]} 40. Kf2 {[%emt 0:03:17]} Rae8 {[%emt 0:00:00]} 41. Be5 {[%emt 0:02:11]} Ne6 {[%emt 0:00:00]} 42. Rg2 {[%emt 0:03:26]} Rf8 {[%emt 0:00:27]} 43. Bd6 {[%emt 0:02:30]} Rd8 {[%emt 0:00:31]} 44. Bb4 {[%emt 0:01:03]} Re8 {[%emt 0:02:18]} 45. Re1 {[%emt 0:03:13]} Nxf4 {[%emt 0:01:34]} 46. exf4 {[%emt 0:00:35]} Rxf4+ {[%emt 0:00:25]} 47. Kg1 {[%emt 0:00:16]} Rxb4 {[%emt 0:00:28]} 48. Rxe8 {[%emt 0:00:34]} Rxb3 {[%emt 0:00:07]} 49. Re7+ {[%emt 0:00:47]} Kh6 {[%emt 0:00:17]} 50. Rge2 {[%emt 0:16:14]} Rd3 {[%emt 0:15:53]} 1-0

[Event "XVI Memorial Lezcano Montalvo 2024"]
[Site "Gran Canaria"]
[Date "2024.03.26"]
[Round "4.28"]
[White "Ascension Suarez, Joel"]
[Black "Gonzalez Martinez, Miguel Angel"]
[Result "0-1"]
[ECO "A54"]
[WhiteElo "1731"]
[BlackElo "2158"]
[Annotator "RC"]
[PlyCount "52"]
[EventDate "2024.03.23"]
[EventType "swiss"]
[EventCountry "ESP"]
[SourceTitle "playchess.com"]
[Source "ChessBase"]
[SourceQuality "1"]
[TimeControl "5400+30"]

1. Nf3 {[%emt 1:31:00]} Nf6 {[%emt 1:31:00]} 2. g3 {[%emt 0:00:30]} d6 {[%emt 0:00:30]} 3. d4 {[%emt 0:00:30]} Nbd7 {[%emt 0:00:30]} 4. c4 {[%emt 0:00:30]} e5 {[%emt 0:00:30]} 5. Bg2 {[%emt 0:00:30]} c6 {[%emt 0:00:30]} 6. Nc3 {[%emt 0:00:30]} Be7 {[%emt 0:00:30]} 7. O-O {[%emt 0:00:30]} O-O {[%emt 0:00:30]} 8. b3 {[%emt 0:00:00]} Qc7 {[%emt 0:00:00]} 9. Ba3 {[%emt 0:00:00]} Qa5 {[%emt 0:00:00]} 10. Bb2 {[%emt 0:00:00]} e4 {[%emt 0:00:00]} 11. Nd2 {[%emt 0:00:00]} e3 {[%emt 0:00:00]} 12. fxe3 {[%emt 0:00:00]} Ng4 {[%emt 0:00:00]} 13. Rf3 {[%emt 0:00:00]} Bg5 {[%emt 0:00:00]} 14. Nf1 {[%emt 0:00:00]} f5 {[%emt 0:00:00]} 15. h3 {[%emt 0:00:00]} Ngf6 {[%emt 0:00:00]} 16. Qc2 {[%emt 0:00:00]} g6 {[%emt 0:00:00]} 17. Rd1 {[%emt 0:00:00]} d5 {[%emt 0:00:00]} 18. cxd5 {[%emt 0:00:00]} cxd5 {[%emt 0:00:00]} 19. Na4 {[%emt 0:00:00]} Ne4 {[%emt 0:00:00]} 20. Bc3 {[%emt 0:00:00]} Qc7 {[%emt 0:00:00]} 21. Rc1 {[%emt 0:00:00]} Rf6 {[%emt 0:00:00]} 22. Nc5 {[%emt 0:00:00]} Rc6 {[%emt 0:00:00]} 23. Bb4 {[%emt 0:00:00]} b6 {[%emt 0:00:00]} 24. Ne6 {[%emt 0:00:00]} Rxc2 {[%emt 0:00:00]} 25. Nxc7 {[%emt 0:00:00]} Rxc1 {[%emt 0:00:00]} 26. Nxa8 {[%emt 0:00:00]} Bb7 {[%emt 0:00:00]} 0-1

[Event "XVI Memorial Lezcano Montalvo 2024"]
[Site "Gran Canaria"]
[Date "2024.03.26"]
[Round "4.29"]
[White "Perez Celis, Alba"]
[Black "Lopez Pereyra, Antonio"]
[Result "0-1"]
[ECO "B06"]
[WhiteElo "1854"]
[BlackElo "2069"]
[Annotator "RC"]
[PlyCount "82"]
[EventDate "2024.03.23"]
[EventType "swiss"]
[EventCountry "ESP"]
[SourceTitle "playchess.com"]
[Source "ChessBase"]
[SourceQuality "1"]
[TimeControl "5400+30"]

1. e4 {[%emt 0:13:10]} g6 {[%emt 0:00:29]} 2. d4 {[%emt 0:00:22]} Bg7 {[%emt 0:00:07]} 3. Nc3 {[%emt 0:02:34]} d6 {[%emt 0:00:43]} 4. Be3 {[%emt 0:00:35]} c6 {[%emt 0:01:41]} 5. Be2 {[%emt 0:01:48]} b5 {[%emt 0:01:14]} 6. Qd2 {[%emt 0:03:21]} Nd7 {[%emt 0:04:08]} 7. f4 {[%emt 0:02:37]} b4 {[%emt 0:04:06]} 8. Nd1 {[%emt 0:02:45]} a5 {[%emt 0:00:52]} 9. Nf3 {[%emt 0:01:33]} Ba6 {[%emt 0:06:16]} 10. O-O {[%emt 0:02:54]} Bxe2 {[%emt 0:03:46]} 11. Qxe2 {[%emt 0:00:13]} Qc7 {[%emt 0:04:31]} 12. a3 {[%emt 0:07:33]} bxa3 {[%emt 0:07:51]} 13. Rxa3 {[%emt 0:00:17]} Ngf6 {[%emt 0:01:39]} 14. Nc3 {[%emt 0:02:02]} Ng4 {[%emt 0:10:47]} 15. Bd2 {[%emt 0:05:00]} O-O {[%emt 0:07:04]} 16. h3 {[%emt 0:00:36]} Ngf6 {[%emt 0:00:11]} 17. Rfa1 {[%emt 0:01:05]} e5 {[%emt 0:01:38]} 18. Kh1 {[%emt 0:05:20]} Nh5 {[%emt 0:00:46]} 19. Qf2 {[%emt 0:05:14]} exf4 {[%emt 0:02:41]} 20. b4 {[%emt 0:02:54]} a4 {[%emt 0:06:57]} 21. Ne2 {[%emt 0:05:09]} f5 {[%emt 0:06:57]} 22. exf5 {[%emt 0:06:08]} Rxf5 {[%emt 0:00:32]} 23. Rxa4 {[%emt 0:00:34]} Rxa4 {[%emt 0:00:35]} 24. Rxa4 {[%emt 0:00:55]} Nb6 {[%emt 0:01:54]} 25. Ra5 {[%emt 0:00:25]} d5 {[%emt 0:01:17]} 26. Qe1 {[%emt 0:06:18]} Rf8 {[%emt 0:02:42]} 27. Nc3 {[%emt 0:04:25]} Qd7 {[%emt 0:05:06]} 28. Qa1 {[%emt 0:00:57]} Qf5 {[%emt 0:01:13]} 29. b5 {[%emt 0:03:02]} Nc4 {[%emt 0:02:35]} 30. Ra8 {[%emt 0:03:24]} cxb5 {[%emt 0:01:45]} 31. Nxb5 {[%emt 0:02:53]} Nxd2 {[%emt 0:01:57]} 32. Rxf8+ {[%emt 0:04:04]} Bxf8 {[%emt 0:00:03]} 33. Nxd2 {[%emt 0:00:12]} Qxc2 {[%emt 0:01:12]} 34. Nf1 {[%emt 0:01:54]} f3 {[%emt 0:03:39]} 35. gxf3 {[%emt 0:02:49]} Nf4 {[%emt 0:01:10]} 36. Ne3 {[%emt 0:00:07]} Qe2 {[%emt 0:00:18]} 37. Qg1 {[%emt 0:00:52]} Qxf3+ {[%emt 0:03:07]} 38. Ng2 {[%emt 0:00:28]} Nxh3 {[%emt 0:01:11]} 39. Qe1 {[%emt 0:01:17]} Nf4 {[%emt 0:00:59]} 40. Qd2 {[%emt 0:00:45]} Qf1+ {[%emt 0:00:39]} 41. Kh2 {[%emt 0:00:10]} Nxg2 {[%emt 0:00:13]} 0-1

[Event "XVI Memorial Lezcano Montalvo 2024"]
[Site "Gran Canaria"]
[Date "2024.03.26"]
[Round "4.30"]
[White "Sarmiento Afonso, Santiago"]
[Black "Gonzalez Perdomo, Sergio"]
[Result "1/2-1/2"]
[ECO "D36"]
[WhiteElo "2023"]
[BlackElo "1792"]
[Annotator "RC"]
[PlyCount "90"]
[EventDate "2024.03.23"]
[EventType "swiss"]
[EventCountry "ESP"]
[SourceTitle "playchess.com"]
[Source "ChessBase"]
[SourceQuality "1"]
[TimeControl "5400+30"]

1. d4 {[%emt 0:00:29]} Nf6 {[%emt 0:00:19]} 2. c4 {[%emt 0:00:33]} e6 {[%emt 0:00:13]} 3. Nc3 {[%emt 0:00:09]} d5 {[%emt 0:00:17]} 4. cxd5 {[%emt 0:01:20]} exd5 {[%emt 0:00:08]} 5. Bg5 {[%emt 0:00:57]} Be7 {[%emt 0:01:45]} 6. Nf3 {[%emt 0:00:39]} Nbd7 {[%emt 0:01:03]} 7. e3 {[%emt 0:00:09]} O-O {[%emt 0:00:40]} 8. Bd3 {[%emt 0:00:14]} c6 {[%emt 0:00:37]} 9. O-O {[%emt 0:00:28]} Re8 {[%emt 0:00:07]} 10. Qc2 {[%emt 0:00:58]} h6 {[%emt 0:00:27]} 11. Bh4 {[%emt 0:00:41]} Ne4 {[%emt 0:02:05]} 12. Bxe7 {[%emt 0:04:38]} Qxe7 {[%emt 0:00:20]} 13. Rae1 {[%emt 0:03:18]} a6 {[%emt 0:05:00]} 14. Nd2 {[%emt 0:08:09]} Nxd2 {[%emt 0:13:03]} 15. Qxd2 {[%emt 0:00:10]} Nf6 {[%emt 0:00:30]} 16. f3 {[%emt 0:02:05]} Qd6 {[%emt 0:02:26]} 17. Bb1 {[%emt 0:03:50]} c5 {[%emt 0:08:35]} 18. Rd1 {[%emt 0:01:26]} Be6 {[%emt 0:04:46]} 19. Rfe1 {[%emt 0:16:33]} Rad8 {[%emt 0:11:31]} 20. Ne2 {[%emt 0:05:24]} b6 {[%emt 0:03:16]} 21. Ng3 {[%emt 0:02:01]} Qd7 {[%emt 0:08:14]} 22. Qc2 {[%emt 0:01:42]} Rc8 {[%emt 0:05:53]} 23. Qf2 {[%emt 0:03:11]} Rcd8 {[%emt 0:04:27]} 24. Re2 {[%emt 0:04:02]} g6 {[%emt 0:01:38]} 25. Red2 {[%emt 0:00:23]} Qc7 {[%emt 0:05:33]} 26. h3 {[%emt 0:02:13]} Kg7 {[%emt 0:01:27]} 27. f4 {[%emt 0:16:19]} Bc8 {[%emt 0:02:53]} 28. f5 {[%emt 0:04:11]} Bb7 {[%emt 0:02:11]} 29. Qf3 {[%emt 0:02:35]} Qe7 {[%emt 0:01:16]} 30. Re2 {[%emt 0:00:56]} Ne4 {[%emt 0:02:20]} 31. Rf1 {[%emt 0:01:48]} Rd6 {[%emt 0:01:44]} 32. dxc5 {[%emt 0:05:52]} bxc5 {[%emt 0:01:48]} 33. Bxe4 {[%emt 0:00:08]} dxe4 {[%emt 0:00:15]} 34. Qg4 {[%emt 0:00:12]} Qg5 {[%emt 0:04:27]} 35. Qxg5 {[%emt 0:03:54]} hxg5 {[%emt 0:00:04]} 36. fxg6 {[%emt 0:00:05]} Kxg6 {[%emt 0:00:20]} 37. Ref2 {[%emt 0:00:05]} f6 {[%emt 0:01:40]} 38. Rc1 {[%emt 0:01:16]} Rd3 {[%emt 0:00:46]} 39. Nf5 {[%emt 0:00:35]} Re5 {[%emt 0:00:17]} 40. g4 {[%emt 0:00:35]} Bc8 {[%emt 0:00:11]} 41. Rc4 {[%emt 0:00:08]} Bxf5 {[%emt 0:00:59]} 42. gxf5+ {[%emt 0:00:08]} Rxf5 {[%emt 0:00:16]} 43. Rxf5 {[%emt 0:00:58]} Kxf5 {[%emt 0:00:01]} 44. Rxc5+ {[%emt 0:00:01]} Kg6 {[%emt 0:03:09]} 45. Kf2 {[%emt 0:02:44]} Rd2+ {[%emt 0:02:08]} 1/2-1/2

[Event "XVI Memorial Lezcano Montalvo 2024"]
[Site "Gran Canaria"]
[Date "2024.03.26"]
[Round "4.31"]
[White "Fernandez Manrique, Agustin"]
[Black "Bangiev, Katharina"]
[Result "1/2-1/2"]
[ECO "A38"]
[WhiteElo "2017"]
[BlackElo "1779"]
[Annotator "RC"]
[PlyCount "40"]
[EventDate "2024.03.23"]
[EventType "swiss"]
[EventCountry "ESP"]
[SourceTitle "playchess.com"]
[Source "ChessBase"]
[SourceQuality "1"]
[TimeControl "5400+30"]

1. c4 {[%emt 0:00:02]} c5 {[%emt 0:00:07]} 2. Nc3 {[%emt 0:00:11]} Nc6 {[%emt 0:00:14]} 3. g3 {[%emt 0:00:19]} g6 {[%emt 0:00:28]} 4. Bg2 {[%emt 0:00:09]} Bg7 {[%emt 0:00:09]} 5. a3 {[%emt 0:00:57]} Nf6 {[%emt 0:00:52]} 6. Rb1 {[%emt 0:00:49]} a5 {[%emt 0:05:32]} 7. Nf3 {[%emt 0:01:15]} O-O {[%emt 0:03:24]} 8. O-O {[%emt 0:00:22]} d6 {[%emt 0:03:06]} 9. d3 {[%emt 0:00:54]} h6 {[%emt 0:04:01]} 10. Bd2 {[%emt 0:01:02]} Be6 {[%emt 0:00:27]} 11. Ne1 {[%emt 0:04:08]} Qd7 {[%emt 0:04:22]} 12. Nd5 {[%emt 0:01:31]} Bxd5 {[%emt 0:03:52]} 13. cxd5 {[%emt 0:00:04]} Nd4 {[%emt 0:01:01]} 14. e3 {[%emt 0:10:40]} Nb5 {[%emt 0:00:50]} 15. Qa4 {[%emt 0:05:30]} Nc7 {[%emt 0:06:15]} 16. Qxd7 {[%emt 0:00:15]} Nxd7 {[%emt 0:00:03]} 17. a4 {[%emt 0:10:30]} Nb6 {[%emt 0:03:13]} 18. b3 {[%emt 0:08:42]} Nbxd5 {[%emt 0:03:46]} 19. Nc2 {[%emt 0:00:56]} Ra7 {[%emt 0:18:07]} 20. d4 {[%emt 0:14:24]} b6 {[%emt 0:15:07]} 1/2-1/2

[Event "XVI Memorial Lezcano Montalvo 2024"]
[Site "Gran Canaria"]
[Date "2024.03.26"]
[Round "4.32"]
[White "Vargas Tinoco, Martin Alonso"]
[Black "Segura Marsa, Andres"]
[Result "0-1"]
[ECO "A45"]
[WhiteElo "1681"]
[BlackElo "1987"]
[Annotator "RC"]
[PlyCount "76"]
[EventDate "2024.03.23"]
[EventType "swiss"]
[EventCountry "ESP"]
[SourceTitle "playchess.com"]
[Source "ChessBase"]
[SourceQuality "1"]
[TimeControl "5400+30"]

1. d4 {[%emt 0:01:06]} Nf6 {[%emt 0:00:09]} 2. Bf4 {[%emt 0:00:04]} g6 {[%emt 0:00:13]} 3. Nc3 {[%emt 0:00:10]} c5 {[%emt 0:00:17]} 4. dxc5 {[%emt 0:00:54]} Qa5 {[%emt 0:00:07]} 5. Qd2 {[%emt 0:02:35]} Qxc5 {[%emt 0:03:18]} 6. Nf3 {[%emt 0:03:05]} Nc6 {[%emt 0:05:22]} 7. e4 {[%emt 0:09:46]} d6 {[%emt 0:01:41]} 8. a3 {[%emt 0:05:57]} Bg7 {[%emt 0:08:33]} 9. Be2 {[%emt 0:07:13]} O-O {[%emt 0:03:12]} 10. b4 {[%emt 0:10:54]} Qb6 {[%emt 0:00:51]} 11. Be3 {[%emt 0:01:37]} Qd8 {[%emt 0:01:16]} 12. Nd4 {[%emt 0:03:27]} Bd7 {[%emt 0:03:27]} 13. f3 {[%emt 0:00:49]} Rc8 {[%emt 0:02:30]} 14. Bb5 {[%emt 0:07:09]} Ne5 {[%emt 0:06:47]} 15. Bd3 {[%emt 0:02:07]} Nc4 {[%emt 0:01:50]} 16. Bxc4 {[%emt 0:01:33]} Rxc4 {[%emt 0:00:04]} 17. Nce2 {[%emt 0:01:24]} Qc7 {[%emt 0:10:03]} 18. c3 {[%emt 0:05:23]} d5 {[%emt 0:00:16]} 19. Qd3 {[%emt 0:01:44]} dxe4 {[%emt 0:03:21]} 20. fxe4 {[%emt 0:00:07]} e5 {[%emt 0:02:43]} 21. Nb3 {[%emt 0:03:42]} b6 {[%emt 0:02:19]} 22. Nd2 {[%emt 0:02:31]} Rc6 {[%emt 0:03:26]} 23. c4 {[%emt 0:02:28]} Rd6 {[%emt 0:01:01]} 24. Qc2 {[%emt 0:01:28]} Ng4 {[%emt 0:02:15]} 25. Qb3 {[%emt 0:09:46]} Ba4 {[%emt 0:03:32]} 26. Qc3 {[%emt 0:01:03]} Nxe3 {[%emt 0:00:10]} 27. Qxe3 {[%emt 0:00:08]} Rfd8 {[%emt 0:00:14]} 28. Nc3 {[%emt 0:03:40]} Rd3 {[%emt 0:00:54]} 29. Qxd3 {[%emt 0:01:34]} Rxd3 {[%emt 0:00:03]} 30. Nxa4 {[%emt 0:00:07]} Qd7 {[%emt 0:00:07]} 31. Nxb6 {[%emt 0:02:41]} axb6 {[%emt 0:00:08]} 32. Nf3 {[%emt 0:01:00]} Re3+ {[%emt 0:00:12]} 33. Kf2 {[%emt 0:00:07]} Rxe4 {[%emt 0:00:17]} 34. Rhd1 {[%emt 0:03:02]} Qc7 {[%emt 0:00:10]} 35. Rac1 {[%emt 0:02:50]} Rxc4 {[%emt 0:00:09]} 36. Rxc4 {[%emt 0:00:17]} Qxc4 {[%emt 0:00:02]} 37. Rd8+ {[%emt 0:00:20]} Bf8 {[%emt 0:00:03]} 38. Nxe5 {[%emt 0:02:30]} Qh4+ {[%emt 0:00:11]} 0-1

[Event "XVI Memorial Lezcano Montalvo 2024"]
[Site "Gran Canaria"]
[Date "2024.03.26"]
[Round "4.33"]
[White "Sosa Suarez, Carla Cristina"]
[Black "Julien Casteleiro, Ariel"]
[Result "1-0"]
[ECO "C05"]
[WhiteElo "1980"]
[BlackElo "1739"]
[Annotator "RC"]
[PlyCount "51"]
[EventDate "2024.03.23"]
[EventType "swiss"]
[EventCountry "ESP"]
[SourceTitle "playchess.com"]
[Source "ChessBase"]
[SourceQuality "1"]
[TimeControl "5400+30"]

1. e4 {[%emt 0:00:01]} e6 {[%emt 0:10:41]} 2. d4 {[%emt 0:00:04]} d5 {[%emt 0:00:15]} 3. Nd2 {[%emt 0:00:07]} Nf6 {[%emt 0:00:33]} 4. e5 {[%emt 0:00:17]} Nfd7 {[%emt 0:00:07]} 5. f4 {[%emt 0:00:52]} c5 {[%emt 0:00:21]} 6. c3 {[%emt 0:00:03]} Nc6 {[%emt 0:00:14]} 7. Ndf3 {[%emt 0:00:39]} Qb6 {[%emt 0:01:12]} 8. g3 {[%emt 0:01:34]} cxd4 {[%emt 0:01:27]} 9. cxd4 {[%emt 0:00:01]} Bb4+ {[%emt 0:00:52]} 10. Kf2 {[%emt 0:00:04]} O-O {[%emt 0:01:16]} 11. Kg2 {[%emt 0:00:27]} f6 {[%emt 0:00:29]} 12. Bd3 {[%emt 0:03:44]} fxe5 {[%emt 0:01:24]} 13. fxe5 {[%emt 0:00:14]} Ndxe5 {[%emt 0:03:21]} 14. dxe5 {[%emt 0:04:57]} Nxe5 {[%emt 0:01:06]} 15. Nxe5 {[%emt 0:22:18]} Rf2+ {[%emt 0:01:52]} 16. Kh3 {[%emt 0:00:03]} Bd6 {[%emt 0:08:49]} 17. Ngf3 {[%emt 0:13:40]} Qc7 {[%emt 0:02:12]} 18. Be3 {[%emt 0:13:05]} Rxb2 {[%emt 0:05:00]} 19. Bd4 {[%emt 0:01:53]} Rb4 {[%emt 0:00:37]} 20. Rf1 {[%emt 0:04:20]} Rxd4 {[%emt 0:01:11]} 21. Bxh7+ {[%emt 0:00:45]} Kxh7 {[%emt 0:01:07]} 22. Qxd4 {[%emt 0:01:02]} b6 {[%emt 0:00:21]} 23. Qh4+ {[%emt 0:01:47]} Kg8 {[%emt 0:00:15]} 24. Ng5 {[%emt 0:02:58]} g6 {[%emt 0:57:48]} 25. Rf7 {[%emt 0:00:24]} Qxf7 {[%emt 0:00:00]} 26. Ngxf7 {[%emt 0:00:56]} 1-0

[Event "XVI Memorial Lezcano Montalvo 2024"]
[Site "Gran Canaria"]
[Date "2024.03.26"]
[Round "4.34"]
[White "Sanchez Gonzalez, Diego"]
[Black "Barrera Martin, Nayra Maria"]
[Result "1-0"]
[ECO "B05"]
[WhiteElo "1908"]
[BlackElo "1728"]
[Annotator "NA RC"]
[PlyCount "39"]
[EventDate "2024.03.23"]
[EventType "swiss"]
[EventCountry "ESP"]
[SourceTitle "playchess.com"]
[Source "ChessBase"]
[SourceQuality "1"]
[TimeControl "5400+30"]

1. e4 {[%emt 0:00:02]} Nf6 {[%emt 0:01:11]} 2. e5 {[%emt 0:00:05]} Nd5 {[%emt 0:00:18]} 3. d4 {[%emt 0:01:39]} d6 {[%emt 0:01:26]} 4. c4 {[%emt 0:00:30]} Nb6 {[%emt 0:00:44]} 5. Nf3 {[%emt 0:00:27]} Bg4 {[%emt 0:01:14]} 6. exd6 {[%emt 0:00:34]} cxd6 {[%emt 0:00:52]} 7. Be3 {[%emt 0:04:18]} g6 {[%emt 0:01:16]} 8. Bd3 {[%emt 0:01:33]} Bg7 {[%emt 0:02:10]} 9. Nbd2 {[%emt 0:00:19]} O-O {[%emt 0:01:41]} 10. h3 {[%emt 0:00:29]} Bxf3 {[%emt 0:04:01]} 11. Nxf3 {[%emt 0:01:14]} N8d7 {[%emt 0:00:00]} 12. O-O {[%emt 0:03:44]} Nf6 {[%emt 0:00:17]} 13. Re1 {[%emt 0:01:55]} Rc8 {[%emt 1:21:50]} 14. Rc1 {[%emt 0:02:02]} Qd7 {[%emt 0:00:00]} 15. Qe2 {[%emt 0:02:23]} Rfe8 {[%emt 0:00:00]} 16. Red1 {[%emt 0:01:45]} a6 {[%emt 0:00:00]} 17. b3 {[%emt 0:01:42]} Na8 {[%emt 0:00:00]} 18. Ne5 {[%emt 0:11:38]} Qd8 {[%emt 0:00:00]} 19. Nf3 {[%emt 0:03:21]} Nc7 {[%emt 0:03:00]} 20. Nd2 {[%emt 0:05:08]} 1-0